[Event "Titled Tuesday Blitz November 08 Early 2022"]
[White "Lewtak, Damian"]
[Black "Rios Escobar, Adan"]
[WhiteFideId "1141724"]
[BlackFideId "3403645"]
[WhiteElo "2329"]
[BlackElo "2357"]
[Result "1-0"]
[Round "04"]
[TimeControl "180+1"]
[Date "2022.11.09"]
[WhiteClock "0:00:29"]
[BlackClock "0:00:10"]

1. e4 {[%clk 0:03:00]}  c5 {[%clk 0:02:57]} 2. Nf3 {[%clk 0:03:00]}  d6 {[%clk 0:02:57]} 3. Bb5+ {[%clk 0:03:00]}  Nd7 {[%clk 0:02:57]} 4. O-O {[%clk 0:02:59]}  a6 {[%clk 0:02:51]} 5. Bd3 {[%clk 0:02:58]}  Ngf6 {[%clk 0:02:41]} 6. c3 {[%clk 0:02:57]}  g6 {[%clk 0:02:41]} 7. Bc2 {[%clk 0:02:57]}  Bg7 {[%clk 0:02:40]} 8. d4 {[%clk 0:02:57]}  O-O {[%clk 0:02:38]} 9. h3 {[%clk 0:02:48]}  b5 {[%clk 0:02:09]} 10. e5 {[%clk 0:02:46]}  Ne8 {[%clk 0:01:55]} 11. exd6 {[%clk 0:02:43]}  Nxd6 {[%clk 0:01:55]} 12. dxc5 {[%clk 0:02:40]}  Nxc5 {[%clk 0:01:55]} 13. Be3 {[%clk 0:02:33]}  Ne6 {[%clk 0:01:52]} 14. Nbd2 {[%clk 0:02:28]}  Bb7 {[%clk 0:01:51]} 15. Nb3 {[%clk 0:02:24]}  Qc7 {[%clk 0:01:50]} 16. Nbd4 {[%clk 0:02:22]}  Nxd4 {[%clk 0:01:47]} 17. Bxd4 {[%clk 0:02:21]}  Bxf3 {[%clk 0:01:38]} 18. gxf3 {[%clk 0:02:22]}  Bxd4 {[%clk 0:01:38]} 19. Qxd4 {[%clk 0:02:22]}  Rad8 {[%clk 0:01:35]} 20. Qf4 {[%clk 0:02:12]}  Rfe8 {[%clk 0:01:31]} 21. Rfe1 {[%clk 0:02:07]}  Qc4 {[%clk 0:01:27]} 22. Qxc4 {[%clk 0:02:05]}  Nxc4 {[%clk 0:01:26]} 23. b3 {[%clk 0:02:03]}  Nb6 {[%clk 0:01:04]} 24. Rad1 {[%clk 0:02:00]}  Nd5 {[%clk 0:01:03]} 25. c4 {[%clk 0:01:53]}  bxc4 {[%clk 0:00:59]} 26. bxc4 {[%clk 0:01:52]}  Nb4 {[%clk 0:00:58]} 27. Bb3 {[%clk 0:01:45]}  Nd3 {[%clk 0:00:46]} 28. Re3 {[%clk 0:01:44]}  Nc5 {[%clk 0:00:34]} 29. Rxd8 {[%clk 0:01:39]}  Rxd8 {[%clk 0:00:35]} 30. Rxe7 {[%clk 0:01:40]}  Rd3 {[%clk 0:00:33]} 31. Bc2 {[%clk 0:01:08]}  Rxf3 {[%clk 0:00:31]} 32. Rc7 {[%clk 0:01:06]}  Ne6 {[%clk 0:00:25]} 33. Rc8+ {[%clk 0:01:03]}  Kg7 {[%clk 0:00:25]} 34. Bb3 {[%clk 0:01:03]}  Nd4 {[%clk 0:00:18]} 35. Ba4 {[%clk 0:00:55]}  Rxh3 {[%clk 0:00:14]} 36. c5 {[%clk 0:00:51]}  Ra3 {[%clk 0:00:14]} 37. Be8 {[%clk 0:00:51]}  Ne6 {[%clk 0:00:10]} 38. c6 {[%clk 0:00:46]}  Rc3 {[%clk 0:00:10]} 39. Bd7 {[%clk 0:00:46]}  Kf6 {[%clk 0:00:07]} 40. Ra8 {[%clk 0:00:38]}  Nc5 {[%clk 0:00:05]} 41. c7 {[%clk 0:00:28]}  Nxd7 {[%clk 0:00:04]} 42. c8=Q {[%clk 0:00:28]}  Rxc8 {[%clk 0:00:05]} 43. Rxc8 {[%clk 0:00:29]}  Ke6 {[%clk 0:00:05]} 44. Rc6+ {[%clk 0:00:29]}  Kd5 {[%clk 0:00:05]} 45. Rxa6 {[%clk 0:00:30]}  Ne5 {[%clk 0:00:04]} 46. Kf1 {[%clk 0:00:28]}  h5 {[%clk 0:00:05]} 47. Rb6 {[%clk 0:00:25]}  h4 {[%clk 0:00:04]} 48. Rb8 {[%clk 0:00:24]}  g5 {[%clk 0:00:04]} 49. a4 {[%clk 0:00:24]}  Nc6 {[%clk 0:00:02]} 50. Rf8 {[%clk 0:00:19]}  Ke6 {[%clk 0:00:02]} 51. Rg8 {[%clk 0:00:18]}  f6 {[%clk 0:00:02]} 52. Kg2 {[%clk 0:00:18]}  f5 {[%clk 0:00:01]} 53. Rxg5 {[%clk 0:00:18]}  Ke5 {[%clk 0:00:01]} 54. Rh5 {[%clk 0:00:18]}  Ke4 {[%clk 0:00:02]} 55. Rxh4+ {[%clk 0:00:19]}  Kd3 {[%clk 0:00:02]} 56. Rf4 {[%clk 0:00:18]}  Kc3 {[%clk 0:00:01]} 57. Rxf5 {[%clk 0:00:19]}  Kb3 {[%clk 0:00:02]} 58. Rf4 {[%clk 0:00:19]}  Na5 {[%clk 0:00:01]} 59. f3 {[%clk 0:00:19]}  Kc3 {[%clk 0:00:01]} 60. Kg3 {[%clk 0:00:19]}  Kb3 {[%clk 0:00:02]} 61. Rf5 {[%clk 0:00:19]}  Nc4 {[%clk 0:00:03]} 62. Rc5 {[%clk 0:00:19]}  Nb6 {[%clk 0:00:02]} 63. Rb5+ {[%clk 0:00:19]}  Kxa4 {[%clk 0:00:02]} 64. Rxb6 {[%clk 0:00:20]}  Ka5 {[%clk 0:00:02]} 65. Re6 {[%clk 0:00:21]}  Ka4 {[%clk 0:00:03]} 66. f4 {[%clk 0:00:21]}  Ka5 {[%clk 0:00:04]} 67. f5 {[%clk 0:00:22]}  Kb5 {[%clk 0:00:05]} 68. f6 {[%clk 0:00:23]}  Kb4 {[%clk 0:00:06]} 69. f7 {[%clk 0:00:24]}  Kc5 {[%clk 0:00:07]} 70. f8=Q+ {[%clk 0:00:25]}  Kd5 {[%clk 0:00:08]} 71. Qf5+ {[%clk 0:00:25]}  Kd4 {[%clk 0:00:08]} 72. Re4+ {[%clk 0:00:26]}  Kd3 {[%clk 0:00:09]} 73. Qf3+ {[%clk 0:00:27]}  Kd2 {[%clk 0:00:09]} 74. Re2+ {[%clk 0:00:28]}  Kd1 {[%clk 0:00:10]} 75. Qf1# {[%clk 0:00:29]} 1-0


[Site "https://www.chess.com"]

[Event "Titled Tuesday Blitz November 08 Early 2022"]
[White "Lohani, Sujana"]
[Black "Lakshmi C"]
[WhiteFideId "12311987"]
[BlackFideId "25035347"]
[WhiteElo "1691"]
[BlackElo "1865"]
[Result "0-1"]
[Round "04"]
[TimeControl "180+1"]
[Date "2022.11.09"]
[WhiteClock "0:00:01"]
[BlackClock "0:01:13"]

1. d4 {[%clk 0:03:00]}  Nf6 {[%clk 0:02:58]} 2. Nf3 {[%clk 0:03:01]}  e6 {[%clk 0:02:54]} 3. c4 {[%clk 0:03:02]}  b6 {[%clk 0:02:51]} 4. Nc3 {[%clk 0:03:03]}  Bb7 {[%clk 0:02:51]} 5. g3 {[%clk 0:03:04]}  Be7 {[%clk 0:02:51]} 6. Bg2 {[%clk 0:03:04]}  O-O {[%clk 0:02:51]} 7. O-O {[%clk 0:03:03]}  Ne4 {[%clk 0:02:51]} 8. Qc2 {[%clk 0:02:58]}  Nxc3 {[%clk 0:02:48]} 9. bxc3 {[%clk 0:02:47]}  f5 {[%clk 0:02:47]} 10. Rd1 {[%clk 0:02:41]}  d6 {[%clk 0:02:42]} 11. Ba3 {[%clk 0:02:21]}  Nd7 {[%clk 0:02:33]} 12. Rab1 {[%clk 0:02:11]}  Be4 {[%clk 0:02:24]} 13. Qb3 {[%clk 0:01:57]}  Bxb1 {[%clk 0:02:23]} 14. Rxb1 {[%clk 0:01:57]}  Rc8 {[%clk 0:02:22]} 15. c5 {[%clk 0:01:55]}  d5 {[%clk 0:02:21]} 16. c6 {[%clk 0:01:51]}  Nf6 {[%clk 0:02:21]} 17. Bxe7 {[%clk 0:01:24]}  Qxe7 {[%clk 0:02:20]} 18. Ne5 {[%clk 0:01:24]}  Ng4 {[%clk 0:01:53]} 19. Qa4 {[%clk 0:01:08]}  Nxe5 {[%clk 0:01:46]} 20. dxe5 {[%clk 0:01:06]}  Qc5 {[%clk 0:01:45]} 21. Rb3 {[%clk 0:01:01]}  f4 {[%clk 0:01:43]} 22. gxf4 {[%clk 0:00:53]}  a6 {[%clk 0:01:35]} 23. e3 {[%clk 0:00:47]}  Ra8 {[%clk 0:01:28]} 24. Bf1 {[%clk 0:00:22]}  b5 {[%clk 0:01:25]} 25. Qb4 {[%clk 0:00:10]}  Qxc6 {[%clk 0:01:22]} 26. Bg2 {[%clk 0:00:08]}  Qb6 {[%clk 0:01:17]} 27. Qd4 {[%clk 0:00:04]}  c5 {[%clk 0:01:16]} 28. Qd2 {[%clk 0:00:03]}  Rad8 {[%clk 0:01:15]} 29. Rb2 {[%clk 0:00:02]}  d4 {[%clk 0:01:14]} 30. exd4 {[%clk 0:00:02]}  cxd4 {[%clk 0:01:14]} 31. cxd4 {[%clk 0:00:01]}  Rxd4 {[%clk 0:01:13]} 0-1


[Site "https://www.chess.com"]

[Event "Titled Tuesday Blitz November 08 Early 2022"]
[White "Luxama, Jacques Muller"]
[Black "Yeremyan, Alen"]
[WhiteFideId "11900113"]
[BlackFideId "13308998"]
[WhiteElo "1931"]
[BlackElo "2159"]
[Result "0-1"]
[Round "04"]
[TimeControl "180+1"]
[Date "2022.11.09"]
[WhiteClock "0:00:03"]
[BlackClock "0:00:07"]

1. e4 {[%clk 0:03:00]}  c5 {[%clk 0:02:58]} 2. Nf3 {[%clk 0:03:00]}  Nc6 {[%clk 0:02:57]} 3. d4 {[%clk 0:02:59]}  cxd4 {[%clk 0:02:58]} 4. Nxd4 {[%clk 0:02:59]}  Nf6 {[%clk 0:02:59]} 5. Nc3 {[%clk 0:02:58]}  e5 {[%clk 0:02:59]} 6. Ndb5 {[%clk 0:02:56]}  d6 {[%clk 0:03:00]} 7. Nd5 {[%clk 0:02:55]}  Nxd5 {[%clk 0:02:59]} 8. exd5 {[%clk 0:02:56]}  Nb8 {[%clk 0:03:00]} 9. a4 {[%clk 0:02:55]}  Be7 {[%clk 0:03:00]} 10. Be2 {[%clk 0:02:54]}  O-O {[%clk 0:03:00]} 11. O-O {[%clk 0:02:53]}  f5 {[%clk 0:03:01]} 12. f4 {[%clk 0:02:53]}  Nd7 {[%clk 0:03:00]} 13. c4 {[%clk 0:02:42]}  a6 {[%clk 0:02:55]} 14. Na3 {[%clk 0:02:42]}  g5 {[%clk 0:02:46]} 15. fxe5 {[%clk 0:02:29]}  Nxe5 {[%clk 0:02:42]} 16. b4 {[%clk 0:02:27]}  f4 {[%clk 0:02:35]} 17. Nc2 {[%clk 0:02:17]}  Bf6 {[%clk 0:02:16]} 18. Ra3 {[%clk 0:02:14]}  Bd7 {[%clk 0:02:04]} 19. c5 {[%clk 0:02:13]}  Rc8 {[%clk 0:01:59]} 20. cxd6 {[%clk 0:01:48]}  Qb6+ {[%clk 0:01:53]} 21. Kh1 {[%clk 0:01:46]}  Qxd6 {[%clk 0:01:54]} 22. b5 {[%clk 0:01:01]}  Nc4 {[%clk 0:01:33]} 23. Rb3 {[%clk 0:00:52]}  axb5 {[%clk 0:01:30]} 24. axb5 {[%clk 0:00:52]}  Bf5 {[%clk 0:01:24]} 25. Nd4 {[%clk 0:00:45]}  Be4 {[%clk 0:01:15]} 26. Ne6 {[%clk 0:00:41]}  Rf7 {[%clk 0:01:03]} 27. Bf3 {[%clk 0:00:40]}  Ne3 {[%clk 0:00:54]} 28. Bxe3 {[%clk 0:00:37]}  Bc2 {[%clk 0:00:54]} 29. Qc1 {[%clk 0:00:28]}  fxe3 {[%clk 0:00:47]} 30. Rxe3 {[%clk 0:00:22]}  Qd7 {[%clk 0:00:40]} 31. Qa3 {[%clk 0:00:15]}  Qxb5 {[%clk 0:00:39]} 32. Rfe1 {[%clk 0:00:13]}  Bg6 {[%clk 0:00:33]} 33. Bg4 {[%clk 0:00:11]}  Re7 {[%clk 0:00:20]} 34. d6 {[%clk 0:00:10]}  Ree8 {[%clk 0:00:19]} 35. Nd4 {[%clk 0:00:10]}  Rxe3 {[%clk 0:00:19]} 36. Qxe3 {[%clk 0:00:05]}  Bxd4 {[%clk 0:00:12]} 37. Qe6+ {[%clk 0:00:05]}  Kg7 {[%clk 0:00:09]} 38. Qxc8 {[%clk 0:00:05]}  Qb4 {[%clk 0:00:10]} 39. Qe6 {[%clk 0:00:04]}  Bc5 {[%clk 0:00:07]} 40. d7 {[%clk 0:00:04]}  Bf7 {[%clk 0:00:07]} 41. Qxf7+ {[%clk 0:00:03]}  Kxf7 {[%clk 0:00:07]} 0-1


[Site "https://www.chess.com"]

[Event "Titled Tuesday Blitz November 08 Early 2022"]
[White "Manukyan, Sargis A."]
[Black "Rosh Jain"]
[WhiteFideId "13303970"]
[BlackFideId "25789465"]
[WhiteElo "2187"]
[BlackElo "2233"]
[Result "1-0"]
[Round "04"]
[TimeControl "180+1"]
[Date "2022.11.09"]
[WhiteClock "0:01:41"]
[BlackClock "0:01:40"]

1. Nf3 {[%clk 0:03:00]}  d5 {[%clk 0:02:59]} 2. c4 {[%clk 0:03:00]}  e6 {[%clk 0:02:59]} 3. g3 {[%clk 0:02:57]}  Nf6 {[%clk 0:02:59]} 4. Bg2 {[%clk 0:02:58]}  c5 {[%clk 0:02:59]} 5. O-O {[%clk 0:02:59]}  Nc6 {[%clk 0:02:59]} 6. cxd5 {[%clk 0:02:58]}  exd5 {[%clk 0:02:59]} 7. d4 {[%clk 0:02:59]}  Bd6 {[%clk 0:02:59]} 8. Nc3 {[%clk 0:02:59]}  O-O {[%clk 0:02:58]} 9. dxc5 {[%clk 0:03:00]}  Bxc5 {[%clk 0:02:58]} 10. Na4 {[%clk 0:03:00]}  Be7 {[%clk 0:02:57]} 11. Be3 {[%clk 0:03:00]}  Be6 {[%clk 0:02:57]} 12. Rc1 {[%clk 0:02:59]}  Rc8 {[%clk 0:02:54]} 13. Nc5 {[%clk 0:02:53]}  Bxc5 {[%clk 0:02:53]} 14. Bxc5 {[%clk 0:02:39]}  Re8 {[%clk 0:02:50]} 15. Nd4 {[%clk 0:02:39]}  Ne4 {[%clk 0:02:31]} 16. Nxc6 {[%clk 0:02:31]}  Rxc6 {[%clk 0:02:27]} 17. Bxa7 {[%clk 0:02:20]}  Ra6 {[%clk 0:02:26]} 18. Bd4 {[%clk 0:02:16]}  Rxa2 {[%clk 0:02:23]} 19. Qb3 {[%clk 0:02:14]}  Ra5 {[%clk 0:02:02]} 20. Bb6 {[%clk 0:02:04]}  Nd2 {[%clk 0:01:52]} 21. Bxd8 {[%clk 0:01:59]}  Nxb3 {[%clk 0:01:50]} 22. Bxa5 {[%clk 0:01:58]}  Nxa5 {[%clk 0:01:50]} 23. Rc7 {[%clk 0:01:49]}  b5 {[%clk 0:01:46]} 24. Rc5 {[%clk 0:01:41]}  Bg4 {[%clk 0:01:40]} 1-0


[Site "https://www.chess.com"]

[Event "Titled Tuesday Blitz November 08 Early 2022"]
[White "Matinian, Nikita"]
[Black "Andrews, Todd"]
[WhiteFideId "24129100"]
[BlackFideId "2012456"]
[WhiteElo "2422"]
[BlackElo "2441"]
[Result "1-0"]
[Round "04"]
[TimeControl "180+1"]
[Date "2022.11.09"]
[WhiteClock "0:00:21"]
[BlackClock "0:00:10"]

1. e4 {[%clk 0:03:00]}  e6 {[%clk 0:02:52]} 2. d4 {[%clk 0:03:00]}  d5 {[%clk 0:02:53]} 3. Nc3 {[%clk 0:03:01]}  Bb4 {[%clk 0:02:53]} 4. e5 {[%clk 0:03:01]}  c5 {[%clk 0:02:52]} 5. a3 {[%clk 0:03:02]}  Bxc3+ {[%clk 0:02:52]} 6. bxc3 {[%clk 0:03:03]}  Qc7 {[%clk 0:02:53]} 7. Qg4 {[%clk 0:03:01]}  f5 {[%clk 0:02:52]} 8. Qg3 {[%clk 0:03:00]}  cxd4 {[%clk 0:02:49]} 9. cxd4 {[%clk 0:02:53]}  Ne7 {[%clk 0:02:49]} 10. Bd3 {[%clk 0:02:53]}  O-O {[%clk 0:02:38]} 11. Ne2 {[%clk 0:02:52]}  b6 {[%clk 0:02:38]} 12. h4 {[%clk 0:02:49]}  Ba6 {[%clk 0:02:27]} 13. h5 {[%clk 0:02:48]}  Bxd3 {[%clk 0:02:27]} 14. cxd3 {[%clk 0:02:48]}  Nbc6 {[%clk 0:02:26]} 15. h6 {[%clk 0:02:48]}  g6 {[%clk 0:02:27]} 16. Bg5 {[%clk 0:02:47]}  f4 {[%clk 0:02:08]} 17. Qg4 {[%clk 0:02:08]}  Nf5 {[%clk 0:01:55]} 18. Rc1 {[%clk 0:02:08]}  f3 {[%clk 0:01:45]} 19. gxf3 {[%clk 0:02:06]}  Qd7 {[%clk 0:01:39]} 20. Bf6 {[%clk 0:02:02]}  Rac8 {[%clk 0:01:37]} 21. O-O {[%clk 0:01:48]}  Nxh6 {[%clk 0:01:31]} 22. Qh3 {[%clk 0:01:47]}  Nf5 {[%clk 0:01:29]} 23. Qg4 {[%clk 0:01:41]}  Kf7 {[%clk 0:01:23]} 24. Kg2 {[%clk 0:01:41]}  h5 {[%clk 0:01:18]} 25. Qf4 {[%clk 0:01:39]}  Rg8 {[%clk 0:01:01]} 26. Kh2 {[%clk 0:01:16]}  Ke8 {[%clk 0:00:40]} 27. Rg1 {[%clk 0:01:12]}  Qf7 {[%clk 0:00:39]} 28. Rc2 {[%clk 0:00:53]}  Kd7 {[%clk 0:00:39]} 29. Rgc1 {[%clk 0:00:52]}  g5 {[%clk 0:00:34]} 30. Bxg5 {[%clk 0:00:52]}  Qg6 {[%clk 0:00:34]} 31. Rg1 {[%clk 0:00:48]}  Na5 {[%clk 0:00:18]} 32. Rxc8 {[%clk 0:00:46]}  Rxc8 {[%clk 0:00:18]} 33. Bh4 {[%clk 0:00:40]}  Qf7 {[%clk 0:00:18]} 34. Bf6 {[%clk 0:00:39]}  Nb3 {[%clk 0:00:18]} 35. Ng3 {[%clk 0:00:38]}  Nxg3 {[%clk 0:00:15]} 36. Rxg3 {[%clk 0:00:38]}  Rg8 {[%clk 0:00:16]} 37. Qh4 {[%clk 0:00:32]}  Rxg3 {[%clk 0:00:15]} 38. fxg3 {[%clk 0:00:30]}  Nd2 {[%clk 0:00:15]} 39. Qf4 {[%clk 0:00:27]}  Qg6 {[%clk 0:00:15]} 40. Qxd2 {[%clk 0:00:23]}  h4 {[%clk 0:00:14]} 41. g4 {[%clk 0:00:23]}  Kc6 {[%clk 0:00:13]} 42. Kh3 {[%clk 0:00:23]}  Kb7 {[%clk 0:00:12]} 43. Qd1 {[%clk 0:00:20]}  a5 {[%clk 0:00:12]} 44. Qf1 {[%clk 0:00:20]}  Ka6 {[%clk 0:00:12]} 45. f4 {[%clk 0:00:20]}  b5 {[%clk 0:00:12]} 46. f5 {[%clk 0:00:21]}  exf5 {[%clk 0:00:12]} 47. Qxf5 {[%clk 0:00:22]}  Qf7 {[%clk 0:00:10]} 48. Qc8+ {[%clk 0:00:21]}  Ka7 {[%clk 0:00:08]} 49. Qc5+ {[%clk 0:00:21]}  Ka6 {[%clk 0:00:09]} 50. Qd6+ {[%clk 0:00:21]}  Ka7 {[%clk 0:00:08]} 51. Qe7+ {[%clk 0:00:22]}  Qxe7 {[%clk 0:00:08]} 52. Bxe7 {[%clk 0:00:22]}  Kb6 {[%clk 0:00:08]} 53. e6 {[%clk 0:00:22]}  Kc6 {[%clk 0:00:08]} 54. g5 {[%clk 0:00:23]}  b4 {[%clk 0:00:08]} 55. axb4 {[%clk 0:00:22]}  a4 {[%clk 0:00:08]} 56. g6 {[%clk 0:00:22]}  Kb5 {[%clk 0:00:08]} 57. g7 {[%clk 0:00:22]}  a3 {[%clk 0:00:09]} 58. g8=Q {[%clk 0:00:22]}  a2 {[%clk 0:00:10]} 59. Qa8 {[%clk 0:00:21]}  a1=Q {[%clk 0:00:09]} 60. Qxa1 {[%clk 0:00:21]}  Kc6 {[%clk 0:00:10]} 61. Qa6+ {[%clk 0:00:21]}  Kc7 {[%clk 0:00:10]} 62. Bd6+ {[%clk 0:00:21]}  Kd8 {[%clk 0:00:10]} 63. Qa8# {[%clk 0:00:21]} 1-0


[Site "https://www.chess.com"]

[Event "Titled Tuesday Blitz November 08 Early 2022"]
[White "Mazzilli, Piero"]
[Black "Estrada Nieto, Julian"]
[WhiteFideId "807087"]
[BlackFideId "5101018"]
[WhiteElo "2267"]
[BlackElo "2221"]
[Result "1-0"]
[Round "04"]
[TimeControl "180+1"]
[Date "2022.11.09"]
[WhiteClock "0:00:11"]
[BlackClock "0:00:40"]

1. e4 {[%clk 0:03:00]}  e5 {[%clk 0:02:59]} 2. Nf3 {[%clk 0:03:00]}  Nc6 {[%clk 0:03:00]} 3. Nc3 {[%clk 0:02:58]}  Nf6 {[%clk 0:02:59]} 4. d4 {[%clk 0:02:57]}  exd4 {[%clk 0:02:59]} 5. Nxd4 {[%clk 0:02:58]}  Bb4 {[%clk 0:02:59]} 6. Nxc6 {[%clk 0:02:58]}  bxc6 {[%clk 0:02:59]} 7. Bd3 {[%clk 0:02:58]}  d5 {[%clk 0:03:00]} 8. exd5 {[%clk 0:02:59]}  O-O {[%clk 0:03:00]} 9. O-O {[%clk 0:02:59]}  cxd5 {[%clk 0:03:00]} 10. Bg5 {[%clk 0:02:59]}  c6 {[%clk 0:03:00]} 11. Qf3 {[%clk 0:02:59]}  Bd6 {[%clk 0:02:59]} 12. Rfe1 {[%clk 0:02:44]}  Rb8 {[%clk 0:02:57]} 13. Nd1 {[%clk 0:02:44]}  h6 {[%clk 0:02:57]} 14. Bxf6 {[%clk 0:02:43]}  Qxf6 {[%clk 0:02:56]} 15. Qxf6 {[%clk 0:02:43]}  gxf6 {[%clk 0:02:57]} 16. b3 {[%clk 0:02:43]}  Bd7 {[%clk 0:02:52]} 17. Ne3 {[%clk 0:02:40]}  Rfe8 {[%clk 0:02:50]} 18. Nf5 {[%clk 0:02:34]}  Bf8 {[%clk 0:02:42]} 19. c3 {[%clk 0:02:23]}  Re5 {[%clk 0:02:40]} 20. g4 {[%clk 0:02:21]}  Rbe8 {[%clk 0:02:36]} 21. Kf1 {[%clk 0:02:20]}  h5 {[%clk 0:02:23]} 22. h3 {[%clk 0:02:19]}  hxg4 {[%clk 0:02:20]} 23. hxg4 {[%clk 0:02:19]}  Ba3 {[%clk 0:02:06]} 24. f4 {[%clk 0:02:12]}  Rxe1+ {[%clk 0:01:54]} 25. Rxe1 {[%clk 0:02:11]}  Bb2 {[%clk 0:01:50]} 26. Rxe8+ {[%clk 0:02:06]}  Bxe8 {[%clk 0:01:50]} 27. c4 {[%clk 0:02:03]}  dxc4 {[%clk 0:01:37]} 28. Bxc4 {[%clk 0:01:53]}  Kf8 {[%clk 0:01:37]} 29. Ke2 {[%clk 0:01:30]}  Bd7 {[%clk 0:01:34]} 30. Kf3 {[%clk 0:01:24]}  Be6 {[%clk 0:01:24]} 31. Ne3 {[%clk 0:01:04]}  Ke7 {[%clk 0:01:20]} 32. f5 {[%clk 0:00:58]}  Bd7 {[%clk 0:01:18]} 33. Ke4 {[%clk 0:00:57]}  Kd6 {[%clk 0:01:17]} 34. Bxf7 {[%clk 0:00:55]}  a5 {[%clk 0:01:11]} 35. Nc4+ {[%clk 0:00:54]}  Ke7 {[%clk 0:01:11]} 36. Nxb2 {[%clk 0:00:53]}  Kxf7 {[%clk 0:01:12]} 37. Nc4 {[%clk 0:00:52]}  Ke7 {[%clk 0:01:08]} 38. Kd4 {[%clk 0:00:43]}  a4 {[%clk 0:01:02]} 39. bxa4 {[%clk 0:00:41]}  c5+ {[%clk 0:01:02]} 40. Kxc5 {[%clk 0:00:41]}  Bxa4 {[%clk 0:01:03]} 41. Ne3 {[%clk 0:00:38]}  Kd7 {[%clk 0:01:01]} 42. Nd5 {[%clk 0:00:35]}  Bd1 {[%clk 0:00:58]} 43. a4 {[%clk 0:00:23]}  Kc8 {[%clk 0:00:54]} 44. Nxf6 {[%clk 0:00:19]}  Bxa4 {[%clk 0:00:54]} 45. Kd6 {[%clk 0:00:19]}  Kd8 {[%clk 0:00:53]} 46. g5 {[%clk 0:00:19]}  Bc2 {[%clk 0:00:52]} 47. g6 {[%clk 0:00:14]}  Bxf5 {[%clk 0:00:41]} 48. g7 {[%clk 0:00:14]}  Bh7 {[%clk 0:00:40]} 49. Nxh7 {[%clk 0:00:11]} 1-0


[Site "https://www.chess.com"]

[Event "Titled Tuesday Blitz November 08 Early 2022"]
[White "Mesa Cruz, Juan Carlos"]
[Black "Buscar, Michael"]
[WhiteFideId "6423400"]
[BlackFideId "2603616"]
[WhiteElo "2059"]
[BlackElo "2010"]
[Result "1-0"]
[Round "04"]
[TimeControl "180+1"]
[Date "2022.11.09"]
[WhiteClock "0:01:30"]
[BlackClock "0:00:30"]

1. e4 {[%clk 0:03:00]}  c5 {[%clk 0:02:55]} 2. Nf3 {[%clk 0:02:48]}  Nc6 {[%clk 0:02:55]} 3. d4 {[%clk 0:02:48]}  cxd4 {[%clk 0:02:55]} 4. Nxd4 {[%clk 0:02:48]}  Nf6 {[%clk 0:02:56]} 5. Nc3 {[%clk 0:02:49]}  e5 {[%clk 0:02:57]} 6. Ndb5 {[%clk 0:02:49]}  h6 {[%clk 0:02:58]} 7. Nd6+ {[%clk 0:02:41]}  Bxd6 {[%clk 0:02:57]} 8. Qxd6 {[%clk 0:02:41]}  Qe7 {[%clk 0:02:58]} 9. Qxe7+ {[%clk 0:02:30]}  Kxe7 {[%clk 0:02:59]} 10. Bd3 {[%clk 0:02:22]}  Nb4 {[%clk 0:02:48]} 11. f4 {[%clk 0:02:18]}  Nxd3+ {[%clk 0:02:42]} 12. cxd3 {[%clk 0:02:18]}  d6 {[%clk 0:02:42]} 13. Be3 {[%clk 0:02:17]}  Be6 {[%clk 0:02:15]} 14. d4 {[%clk 0:02:16]}  Ng4 {[%clk 0:02:06]} 15. Kd2 {[%clk 0:02:15]}  Nxe3 {[%clk 0:02:03]} 16. Kxe3 {[%clk 0:02:15]}  exd4+ {[%clk 0:02:01]} 17. Kxd4 {[%clk 0:02:15]}  Rhc8 {[%clk 0:02:00]} 18. Rac1 {[%clk 0:02:11]}  Rc4+ {[%clk 0:01:55]} 19. Kd3 {[%clk 0:02:11]}  Rac8 {[%clk 0:01:55]} 20. f5 {[%clk 0:02:11]}  Rxc3+ {[%clk 0:01:45]} 21. Rxc3 {[%clk 0:02:10]}  Rxc3+ {[%clk 0:01:42]} 22. Kxc3 {[%clk 0:02:10]}  Bd7 {[%clk 0:01:41]} 23. Kd4 {[%clk 0:02:10]}  Bc6 {[%clk 0:01:40]} 24. g4 {[%clk 0:02:01]}  Kf6 {[%clk 0:01:35]} 25. h4 {[%clk 0:02:00]}  a5 {[%clk 0:01:25]} 26. a3 {[%clk 0:01:57]}  a4 {[%clk 0:01:25]} 27. Rh3 {[%clk 0:01:55]}  g6 {[%clk 0:01:03]} 28. Rg3 {[%clk 0:01:51]}  Kg7 {[%clk 0:00:57]} 29. g5 {[%clk 0:01:48]}  hxg5 {[%clk 0:00:52]} 30. hxg5 {[%clk 0:01:47]}  gxf5 {[%clk 0:00:48]} 31. exf5 {[%clk 0:01:47]}  Bd7 {[%clk 0:00:48]} 32. f6+ {[%clk 0:01:44]}  Kg6 {[%clk 0:00:43]} 33. Kd5 {[%clk 0:01:44]}  Bc6+ {[%clk 0:00:39]} 34. Kxd6 {[%clk 0:01:44]}  Be4 {[%clk 0:00:38]} 35. Ke5 {[%clk 0:01:38]}  Bc6 {[%clk 0:00:38]} 36. Kf4 {[%clk 0:01:38]}  Kh7 {[%clk 0:00:32]} 37. g6+ {[%clk 0:01:35]}  fxg6 {[%clk 0:00:32]} 38. Kg5 {[%clk 0:01:36]}  Be4 {[%clk 0:00:31]} 39. Rg4 {[%clk 0:01:34]}  Bc6 {[%clk 0:00:30]} 40. Rh4+ {[%clk 0:01:32]}  Kg8 {[%clk 0:00:30]} 41. Kxg6 {[%clk 0:01:30]} 1-0


[Site "https://www.chess.com"]